Workbook

Sheet Bewertungstabelle BNB_BK
B1: Projektnummer | E1: Projektname
B2: Bewertungssystem Nachhaltiges Bauen (BNB) - Systemvariante Büro- und Verwaltungsgebäude
B3: BNB-Modul Komplettmodernisierung (BNB_BK) - Version 2013_3 | K3: Stand:
B4: Nachhaltigkeitskriterien | E4: max-imale Punkt-zahl | F4: Zielwert | H4: Bewertung | K4: Gewich-tung Gesamtbe-wertung | L4: Gesamt-bewertung
F5: Soll | G5: Punkt- | H5: Punkt-zahl | I5: Qualität | J5: Bemerkung
G6: zahl
B7: BNB-Modul Komplettmodernisierung | J7: Gesamterfüllungsgrad | L7: =L9+L34+L41+L137+L167 -> 0
C9: ='BNB-System'!B10 -> Ökologische Qualität | K9: =K12+K13+K14+K15+K16+K17+K21+K23+K24+K28+K29 -> 0.225 | L9: =(L12+L13+L14+L15+L16+L17+L21+L23+L24+L28+L29) -> 0
D11: ='BNB-System'!C12 -> Wirkungen auf die globale und lokale Umwelt
B12: ='BNB-System'!B13 -> BK | C12: ='BNB-System'!C13 -> 1.1.1 | D12: ='BNB-System'!D13 -> Treibhauspotenzial (GWP) | E12: ='BNB-System'!E13 -> 100 | K12: ='BNB-System'!G13 -> 0.03375 | L12: =IF(ISNUMBER(H12*'BNB-System'!G13/100),H12*'BNB-System'!G13/100,0) -> 0
B13: ='BNB-System'!B14 -> BK | C13: ='BNB-System'!C14 -> 1.1.2 | D13: ='BNB-System'!D14 -> Ozonschichtabbaupotenzial (ODP) | E13: ='BNB-System'!E14 -> 100 | K13: ='BNB-System'!G14 -> 0.01125 | L13: =IF(ISNUMBER(H13*'BNB-System'!G14/100),H13*'BNB-System'!G14/100,0) -> 0
B14: ='BNB-System'!B15 -> BK | C14: ='BNB-System'!C15 -> 1.1.3 | D14: ='BNB-System'!D15 -> Ozonbildungspotenzial (POCP) | E14: ='BNB-System'!E15 -> 100 | K14: ='BNB-System'!G15 -> 0.01125 | L14: =IF(ISNUMBER(H14*'BNB-System'!G15/100),H14*'BNB-System'!G15/100,0) -> 0
B15: ='BNB-System'!B16 -> BK | C15: ='BNB-System'!C16 -> 1.1.4 | D15: ='BNB-System'!D16 -> Versauerungspotenzial (AP) | E15: ='BNB-System'!E16 -> 100 | K15: ='BNB-System'!G16 -> 0.01125 | L15: =IF(ISNUMBER(H15*'BNB-System'!G16/100),H15*'BNB-System'!G16/100,0) -> 0
B16: ='BNB-System'!B17 -> BK | C16: ='BNB-System'!C17 -> 1.1.5 | D16: ='BNB-System'!D17 -> Überdüngungspotenzial (EP) | E16: ='BNB-System'!E17 -> 100 | K16: ='BNB-System'!G17 -> 0.01125 | L16: =IF(ISNUMBER(H16*'BNB-System'!G17/100),H16*'BNB-System'!G17/100,0) -> 0
B17: ='BNB-System'!B18 -> BK | C17: ='BNB-System'!C18 -> 1.1.6 | D17: ='BNB-System'!D18 -> Risiken für die lokale Umwelt | E17: ='BNB-System'!E18 -> 100 | H17: =IF(AND(ISNUMBER($H18),$H18>=0),H18,IF(SUM(H19:H20)>100,100,SUM(H19:H20))) -> 0 | K17: ='BNB-System'!G18 -> 0.03375 | L17: =IF(ISNUMBER(H17*'BNB-System'!G18/100),H17*'BNB-System'!G18/100,0) -> 0
D18: pauschale Bewertung des Kriteriums:
D19: ='BNB-System'!D19 -> Risiken aus der Neusubstanz | E19: ='BNB-System'!E19 -> 50
D20: ='BNB-System'!D20 -> Risiken aus der Altsubstanz | E20: ='BNB-System'!E20 -> 50
B21: ='BNB-System'!B21 -> BK | C21: ='BNB-System'!C21 -> 1.1.7 | D21: ='BNB-System'!D21 -> Nachhaltige Materialgewinnung / Holz | E21: ='BNB-System'!E21 -> 100 | K21: ='BNB-System'!G21 -> 0.01125 | L21: =IF(ISNUMBER(H21*'BNB-System'!G21/100),H21*'BNB-System'!G21/100,0) -> 0
D22: ='BNB-System'!C22 -> Ressourceninanspruchnahme
B23: ='BNB-System'!B23 -> BK | C23: ='BNB-System'!C23 -> 1.2.1 | D23: ='BNB-System'!D23 -> Primärenergiebedarf nicht erneuerbar (PEne) | E23: ='BNB-System'!E23 -> 100 | K23: ='BNB-System'!G23 -> 0.03375 | L23: =IF(ISNUMBER(H23*'BNB-System'!G23/100),H23*'BNB-System'!G23/100,0) -> 0
B24: ='BNB-System'!B24 -> BK | C24: ='BNB-System'!C24 -> 1.2.2 | D24: ='BNB-System'!D24 -> Gesamtprimärenergiebedarf (PEges) u. Anteil erneuerbare Primärenergie (PEe) | E24: ='BNB-System'!E24 -> 100 | H24: =IF(AND(ISNUMBER($H25),$H25>=0),H25,IF(SUM(H26:H27)>100,100,SUM(H26:H27))) -> 0 | K24: ='BNB-System'!G24 -> 0.0225 | L24: =IF(ISNUMBER(H24*'BNB-System'!G24/100),H24*'BNB-System'!G24/100,0) -> 0
D25: pauschale Bewertung des Kriteriums:
D26: ='BNB-System'!D25 -> Gesamtenergiebedarf | E26: ='BNB-System'!E25 -> 100
D27: ='BNB-System'!D26 -> Anteil erneuerbarer Primärenergie | E27: ='BNB-System'!E26 -> 50
B28: ='BNB-System'!B27 -> BN_2011 | C28: ='BNB-System'!C27 -> 1.2.3 | D28: ='BNB-System'!D27 -> Trinkwasserbedarf und Abwasseraufkommen | E28: ='BNB-System'!E27 -> 100 | K28: ='BNB-System'!G27 -> 0.0225 | L28: =IF(ISNUMBER(H28*'BNB-System'!G27/100),H28*'BNB-System'!G27/100,0) -> 0
B29: ='BNB-System'!B28 -> BK | C29: ='BNB-System'!C28 -> 1.2.4 | D29: ='BNB-System'!D28 -> Flächeninanspruchnahme | E29: ='BNB-System'!E28 -> 100 | H29: =IF(AND(ISNUMBER($H30),$H30>=0),H30,IF(SUM(H31:H32)>100,100,SUM(H31:H32))) -> 0 | K29: ='BNB-System'!G28 -> 0.0225 | L29: =IF(ISNUMBER(H29*'BNB-System'!G28/100),H29*'BNB-System'!G28/100,0) -> 0
D30: pauschale Bewertung des Kriteriums:
D31: ='BNB-System'!D29 -> Veränderung der Flächeninanspruchnahme | E31: ='BNB-System'!E29 -> 100
D32: ='BNB-System'!D30 -> Ausgleichsmaßnahmen und Flächenrecycling | E32: ='BNB-System'!E30 -> 40
C34: ='BNB-System'!B32 -> Ökonomische Qualität | K34: =K37+K39 -> 0.225 | L34: =(L37+L39) -> 0
D36: ='BNB-System'!C34 -> Lebenszykluskosten
B37: ='BNB-System'!B35 -> BK | C37: ='BNB-System'!C35 -> 2.1.1 | D37: ='BNB-System'!D35 -> Gebäudebezogene Kosten im Lebenszyklus | E37: ='BNB-System'!E35 -> 100 | K37: ='BNB-System'!G35 -> 0.135 | L37: =IF(ISNUMBER(H37*'BNB-System'!G35/100),H37*'BNB-System'!G35/100,0) -> 0
D38: ='BNB-System'!C36 -> Wertentwicklung
B39: ='BNB-System'!B37 -> BN_2011 | C39: ='BNB-System'!C37 -> 2.2.1 | D39: ='BNB-System'!D37 -> Drittverwendungsfähigkeit | E39: ='BNB-System'!E37 -> 100 | K39: ='BNB-System'!G37 -> 0.09 | L39: =IF(ISNUMBER(H39*'BNB-System'!G37/100),H39*'BNB-System'!G37/100,0) -> 0
C41: ='BNB-System'!B39 -> Soziokulturelle und funktionale Qualität | K41: =K44+K50+K56+K60+K70+K79+K89+K93+K98+K99+K100+K108+K115+K120+K130 -> 0.225 | L41: =(L44+L50+L56+L60+L70+L79+L89+L93+L98+L99+L100+L108+L115+L120+L130) -> 0
D43: ='BNB-System'!C41 -> Gesundheit, Behaglichkeit und Nutzerzufriedenheit
B44: ='BNB-System'!B42 -> BN_2011 | C44: ='BNB-System'!C42 -> 3.1.1 | D44: ='BNB-System'!D42 -> Thermischer Komfort im Winter | E44: ='BNB-System'!E42 -> 100 | H44: =IF(AND(ISNUMBER($H45),$H45>=0),H45,IF(SUM(H46:H49)>100,100,SUM(H46:H49))) -> 0 | K44: ='BNB-System'!G42 -> 0.01607142857 | L44: =IF(ISNUMBER(H44*'BNB-System'!G42/100),H44*'BNB-System'!G42/100,0) -> 0
D45: pauschale Bewertung des Kriteriums:
D46: ='BNB-System'!D43 -> Operative Temperatur | E46: ='BNB-System'!E43 -> 70
D47: ='BNB-System'!D44 -> Zugluft | E47: ='BNB-System'!E44 -> 10
D48: ='BNB-System'!D45 -> Stahlungstemperaturasymmetrie und Fußbodentemperatur | E48: ='BNB-System'!E45 -> 10
D49: ='BNB-System'!D46 -> Relative Luftfeuchte | E49: ='BNB-System'!E46 -> 10
B50: ='BNB-System'!B47 -> BN_2011 | C50: ='BNB-System'!C47 -> 3.1.2 | D50: ='BNB-System'!D47 -> Thermischer Komfort im Sommer | E50: ='BNB-System'!E47 -> 100 | H50: =IF(AND(ISNUMBER($H51),$H51>=0),H51,IF(SUM(H52:H55)>100,100,SUM(H52:H55))) -> 0 | K50: ='BNB-System'!G47 -> 0.02410714286 | L50: =IF(ISNUMBER(H50*'BNB-System'!G47/100),H50*'BNB-System'!G47/100,0) -> 0
D51: pauschale Bewertung des Kriteriums:
D52: ='BNB-System'!D48 -> Operative Temperatur | E52: ='BNB-System'!E48 -> 70
D53: ='BNB-System'!D49 -> Zugluft | E53: ='BNB-System'!E49 -> 10
D54: ='BNB-System'!D50 -> Stahlungstemperaturasymmetrie und Fußbodentemperatur | E54: ='BNB-System'!E50 -> 10
D55: ='BNB-System'!D51 -> Relative Luftfeuchte | E55: ='BNB-System'!E51 -> 10
B56: ='BNB-System'!B52 -> BN_2011 | C56: ='BNB-System'!C52 -> 3.1.3 | D56: ='BNB-System'!D52 -> Innenraumhygiene | E56: ='BNB-System'!E52 -> 100 | H56: =IF(AND(ISNUMBER($H57),$H57>=0),H57,IF(SUM(H58:H59)>100,100,SUM(H58:H59))) -> 0 | K56: ='BNB-System'!G52 -> 0.02410714286 | L56: =IF(ISNUMBER(H56*'BNB-System'!G52/100),H56*'BNB-System'!G52/100,0) -> 0
D57: pauschale Bewertung des Kriteriums:
D58: ='BNB-System'!D53 -> Flüchtige organische Stoffe (VOC) und Formaldehyd | E58: ='BNB-System'!E53 -> 50
D59: ='BNB-System'!D54 -> Personenbezogene Lüftungsrate | E59: ='BNB-System'!E54 -> 50
B60: ='BNB-System'!B55 -> BN_2011 | C60: ='BNB-System'!C55 -> 3.1.4 | D60: ='BNB-System'!D55 -> Akustischer Komfort | E60: ='BNB-System'!E55 -> 100 | H60: =IF(AND(ISNUMBER($H61),$H61>=0),H61,IF(IF(ISNUMBER(ROUND(H63/(H63+H65+H67+H69)*H62+H65/(H63+H65+H67+H69)*H64+H67/(H63+H65+H67+H69)*H66+H69/(H63+H65+H67+H69)*H68,1)),ROUND(H63/(H63+H65+H67+H69)*H62+H65/(H63+H65+H67+H69)*H64+H67/(H63+H65+H67+H69)*H66+H69/(H63+H65+H67+H69)*H68,1),0)>100,100,IF(ISNUMBER(ROUND(H63/(H63+H65+H67+H69)*H62+H65/(H63+H65+H67+H69)*H64+H67/(H63+H65+H67+H69)*H66+H69/(H63+H65+H67+H69)*H68,1)),ROUND(H63/(H63+H65+H67+H69)*H62+H65/(H63+H65+H67+H69)*H64+H67/(H63+H65+H67+H69)*H66+H69/(H63+H65+H67+H69)*H68,1),0))) -> 0 | K60: ='BNB-System'!G55 -> 0.008035714286 | L60: =IF(ISNUMBER(H60*'BNB-System'!G55/100),H60*'BNB-System'!G55/100,0) -> 0
D61: pauschale Bewertung des Kriteriums:
D62: ='BNB-System'!D56 -> Einzel- und Mehrpersonenbüros bis 40 m² | E62: ='BNB-System'!E56 -> 100
D63: ='BNB-System'!D57 -> NF Einzel- und Mehrpersonenbüros bis 40 m²
D64: ='BNB-System'!D58 -> Mehrpersonenbüros | E64: ='BNB-System'!E58 -> 100
D65: ='BNB-System'!D59 -> NF Mehrpersonenbüros
D66: ='BNB-System'!D60 -> Besprechungsräume | E66: ='BNB-System'!E60 -> 100
D67: ='BNB-System'!D61 -> NF Besprechungsräume
D68: ='BNB-System'!D62 -> Kantinen über 50 m² | E68: ='BNB-System'!E62 -> 100
D69: ='BNB-System'!D63 -> NF Kantinen über 50 m²
B70: ='BNB-System'!B64 -> BN_2011 | C70: ='BNB-System'!C64 -> 3.1.5 | D70: ='BNB-System'!D64 -> Visueller Komfort | E70: ='BNB-System'!E64 -> 100 | H70: =IF(AND(ISNUMBER($H71),$H71>=0),H71,IF(SUM(H72:H78)>100,100,SUM(H72:H78))) -> 0 | K70: ='BNB-System'!G64 -> 0.02410714286 | L70: =IF(ISNUMBER(H70*'BNB-System'!G64/100),H70*'BNB-System'!G64/100,0) -> 0
D71: pauschale Bewertung des Kriteriums:
D72: ='BNB-System'!D65 -> Tageslichtverfügbarkeit Gesamtgebäude | E72: ='BNB-System'!E65 -> 15
D73: ='BNB-System'!D66 -> Tageslichtverfügbarkeit ständige Arbeitsplätze | E73: ='BNB-System'!E66 -> 15
D74: ='BNB-System'!D67 -> Nachweis de Sichtverbindung außen | E74: ='BNB-System'!E67 -> 15
D75: ='BNB-System'!D68 -> Blendfreiheit Tageslicht | E75: ='BNB-System'!E68 -> 15
D76: ='BNB-System'!D69 -> Blendfreiheit Kunstlicht | E76: ='BNB-System'!E69 -> 10
D77: ='BNB-System'!D70 -> Lichtverteilung | E77: ='BNB-System'!E70 -> 15
D78: ='BNB-System'!D71 -> Farbwiedergabe | E78: ='BNB-System'!E71 -> 15
B79: ='BNB-System'!B72 -> BN_2011 | C79: ='BNB-System'!C72 -> 3.1.6 | D79: ='BNB-System'!D72 -> Einflussnahme des Nutzers | E79: ='BNB-System'!E72 -> 100 | H79: =IF(AND(ISNUMBER($H80),$H80>=0),H80,IF(SUM(H81:H88)>100,100,SUM(H81:H88))) -> 0 | K79: ='BNB-System'!G72 -> 0.01607142857 | L79: =IF(ISNUMBER(H79*'BNB-System'!G72/100),H79*'BNB-System'!G72/100,0) -> 0
D80: pauschale Bewertung des Kriteriums:
D81: ='BNB-System'!D73 -> Lüftung | E81: ='BNB-System'!E73 -> 10
D82: ='BNB-System'!D74 -> Sonnenschutz | E82: ='BNB-System'!E74 -> 10
D83: ='BNB-System'!D75 -> Blendschutz | E83: ='BNB-System'!E75 -> 10
D84: ='BNB-System'!D76 -> Temperaturen während der Heizperiode | E84: ='BNB-System'!E76 -> 10
D85: ='BNB-System'!D77 -> Temperaturen außerhalb der Heizperiode | E85: ='BNB-System'!E77 -> 15
D86: ='BNB-System'!D78 -> Steuerung von Tageslicht | E86: ='BNB-System'!E78 -> 15
D87: ='BNB-System'!D79 -> Steuerung von Kunstlicht | E87: ='BNB-System'!E79 -> 15
D88: ='BNB-System'!D80 -> Bedienfreundlichkeit | E88: ='BNB-System'!E80 -> 15
B89: ='BNB-System'!B81 -> BN_2011 | C89: ='BNB-System'!C81 -> 3.1.7 | D89: ='BNB-System'!D81 -> Aufenthaltsmerkmale im Außenraum | E89: ='BNB-System'!E81 -> 100 | H89: =IF(AND(ISNUMBER($H90),$H90>=0),H90,IF(SUM(H91:H92)>100,100,SUM(H91:H92))) -> 0 | K89: ='BNB-System'!G81 -> 0.008035714286 | L89: =IF(ISNUMBER(H89*'BNB-System'!G81/100),H89*'BNB-System'!G81/100,0) -> 0
D90: pauschale Bewertung des Kriteriums:
D91: ='BNB-System'!D82 -> Anzahl der Sitzmöglichkeiten im Außenbereich | E91: ='BNB-System'!E82 -> 40
D92: ='BNB-System'!D83 -> Ausstattungsmerkmale | E92: ='BNB-System'!E83 -> 100
B93: ='BNB-System'!B84 -> BN_2011 | C93: ='BNB-System'!C84 -> 3.1.8 | D93: ='BNB-System'!D84 -> Sicherheit und Störfallrisiken | E93: ='BNB-System'!E84 -> 100 | H93: =IF(AND(ISNUMBER($H94),$H94>=0),H94,IF(SUM(H95:H96)>100,100,SUM(H95:H96))) -> 0 | K93: ='BNB-System'!G84 -> 0.008035714286 | L93: =IF(ISNUMBER(H93*'BNB-System'!G84/100),H93*'BNB-System'!G84/100,0) -> 0
D94: pauschale Bewertung des Kriteriums:
D95: ='BNB-System'!D85 -> Subjektives Sicherheitsempfinden und Schutz vor Übergriffen | E95: ='BNB-System'!E85 -> 50
D96: ='BNB-System'!D86 -> Reduktion des Schadensausmaßes im Fall von Schadensereignissen | E96: ='BNB-System'!E86 -> 50
D97: ='BNB-System'!C87 -> Funktionalität
B98: ='BNB-System'!B88 -> BN_2011 | C98: ='BNB-System'!C88 -> 3.2.1 | D98: ='BNB-System'!D88 -> Barrierefreiheit | E98: ='BNB-System'!E88 -> 100 | K98: ='BNB-System'!G88 -> 0.01607142857 | L98: =IF(ISNUMBER(H98*'BNB-System'!G88/100),H98*'BNB-System'!G88/100,0) -> 0
B99: ='BNB-System'!B89 -> BN_2011 | C99: ='BNB-System'!C89 -> 3.2.2 | D99: ='BNB-System'!D89 -> Flächeneffizienz | E99: ='BNB-System'!E89 -> 100 | K99: ='BNB-System'!G89 -> 0.008035714286 | L99: =IF(ISNUMBER(H99*'BNB-System'!G89/100),H99*'BNB-System'!G89/100,0) -> 0
B100: ='BNB-System'!B90 -> BK | C100: ='BNB-System'!C90 -> 3.2.3 | D100: ='BNB-System'!D90 -> Umnutzungsfähigkeit | E100: ='BNB-System'!E90 -> 100 | H100: =IF(AND(ISNUMBER($H101),$H101>=0),H101,IF(SUM(H102:H107)>100,100,SUM(H102:H107))) -> 0 | K100: ='BNB-System'!G90 -> 0.01607142857 | L100: =IF(ISNUMBER(H100*'BNB-System'!G90/100),H100*'BNB-System'!G90/100,0) -> 0
D101: pauschale Bewertung des Kriteriums:
D102: ='BNB-System'!D91 -> Lichte Raumhöhe | E102: ='BNB-System'!E91 -> 15
D103: ='BNB-System'!D92 -> Gebäudetiefe | E103: ='BNB-System'!E92 -> 15
D104: ='BNB-System'!D93 -> Vertikale Erschließung | E104: ='BNB-System'!E93 -> 15
D105: ='BNB-System'!D94 -> Grundrisse | E105: ='BNB-System'!E94 -> 25
D106: ='BNB-System'!D95 -> Konstruktion | E106: ='BNB-System'!E95 -> 20
D107: ='BNB-System'!D96 -> Technische Ausstattung | E107: ='BNB-System'!E96 -> 10
B108: ='BNB-System'!B97 -> BN_2011 | C108: ='BNB-System'!C97 -> 3.2.4 | D108: ='BNB-System'!D97 -> Zugänglichkeit | E108: ='BNB-System'!E97 -> 100 | H108: =IF(AND(ISNUMBER($H109),$H109>=0),H109,IF(SUM(H110:H114)>100,100,SUM(H110:H114))) -> 0 | K108: ='BNB-System'!G97 -> 0.01607142857 | L108: =IF(ISNUMBER(H108*'BNB-System'!G97/100),H108*'BNB-System'!G97/100,0) -> 0
D109: pauschale Bewertung des Kriteriums:
D110: ='BNB-System'!D98 -> Grundsätzliche Zugänglichkeit des Gebäudes | E110: ='BNB-System'!E98 -> 25
D111: ='BNB-System'!D99 -> Öffnung der Außenanlagen für die Öffentlichkeit | E111: ='BNB-System'!E99 -> 25
D112: ='BNB-System'!D100 -> Öffnung gebäudeinterner Einrichtungen für die Öffentlichkeit | E112: ='BNB-System'!E100 -> 25
D113: ='BNB-System'!D101 -> Möglichkeit der Anmietung von Räumlichkeiten | E113: ='BNB-System'!E101 -> 15
D114: ='BNB-System'!D102 -> Nutzungsvielfalt der öffentlich zugänglichen Bereiche | E114: ='BNB-System'!E102 -> 10
B115: ='BNB-System'!B103 -> BN_2011 | C115: ='BNB-System'!C103 -> 3.2.5 | D115: ='BNB-System'!D103 -> Fahrradkomfort | E115: ='BNB-System'!E103 -> 100 | H115: =IF(AND(ISNUMBER($H116),$H116>=0),H116,IF(SUM(H117:H118)>100,100,SUM(H117:H118))) -> 0 | K115: ='BNB-System'!G103 -> 0.008035714286 | L115: =IF(ISNUMBER(H115*'BNB-System'!G103/100),H115*'BNB-System'!G103/100,0) -> 0
D116: pauschale Bewertung des Kriteriums:
D117: ='BNB-System'!D104 -> Anzahl der Fahrradstellplätze | E117: ='BNB-System'!E104 -> 50
D118: ='BNB-System'!D105 -> Qualitative Anfoorderungen | E118: ='BNB-System'!E105 -> 50
D119: ='BNB-System'!C106 -> Sicherung der Gestaltungsqualität
B120: ='BNB-System'!B107 -> BK | C120: ='BNB-System'!C107 -> 3.3.1 | D120: ='BNB-System'!D107 -> Gestalterische und städtebauliche Qualität | E120: ='BNB-System'!E107 -> 100 | H120: =IF(AND(ISNUMBER($H121),$H121>=0),H121,IF(SUM(H122:H129)>100,100,SUM(H122:H129))) -> 0 | K120: ='BNB-System'!G107 -> 0.02410714286 | L120: =IF(ISNUMBER(H120*'BNB-System'!G107/100),H120*'BNB-System'!G107/100,0) -> 0
D121: pauschale Bewertung des Kriteriums:
D122: ='BNB-System'!D108 -> Fortentwicklung der gestalterischen und städtebaulichen Qualität des Bestandsgebäudes | E122: ='BNB-System'!E108 -> 40
D123: ='BNB-System'!D109 -> Wettbewerbsverfahren | E123: ='BNB-System'!E109 -> 35
D124: ='BNB-System'!D110 -> Ausführung des Entwurfs eines der Preisträger | E124: ='BNB-System'!E110 -> 20
D125: ='BNB-System'!D111 -> Beauftragung des Planungsteams | E125: ='BNB-System'!E111 -> 5
D126: ='BNB-System'!D112 -> Auszeichnung mit einem Architekturpreis | E126: ='BNB-System'!E112 -> 60
D127: ='BNB-System'!D113 -> Unabhängiges Expertengremium | E127: ='BNB-System'!E113 -> 40
D128: ='BNB-System'!D114 -> Sonderfall Mindestanforderung | E128: ='BNB-System'!E114 -> 5
D129: ='BNB-System'!D115 -> Denkmalpflege und Denkmalschutz | E129: ='BNB-System'!E115 -> 100
B130: ='BNB-System'!B116 -> BK | C130: ='BNB-System'!C116 -> 3.3.2 | D130: ='BNB-System'!D116 -> Kunst am Bau | E130: ='BNB-System'!E116 -> 100 | H130: =IF(AND(ISNUMBER($H131),$H131>=0),H131,IF(SUM(H132:H135)>100,100,SUM(H132:H135))) -> 0 | K130: ='BNB-System'!G116 -> 0.008035714286 | L130: =IF(ISNUMBER(H130*'BNB-System'!G116/100),H130*'BNB-System'!G116/100,0) -> 0
D131: pauschale Bewertung des Kriteriums:
D132: ='BNB-System'!D117 -> Mindestanforderung | E132: ='BNB-System'!E117 -> 10
D133: ='BNB-System'!D118 -> Bereitstellung von Mitteln im Rahmen der Bauaufgabe | E133: ='BNB-System'!E118 -> 30
D134: ='BNB-System'!D119 -> Umsetzung des BMVBS-Leitfadens Kunst am Bau | E134: ='BNB-System'!E119 -> 40
D135: ='BNB-System'!D120 -> Öffentlichkeitsarbeit, Rezeption der Kunst am Bau | E135: ='BNB-System'!E120 -> 20
C137: ='BNB-System'!B122 -> Technische Qualität | K137: =K140+K146+K154+K165 -> 0.225 | L137: =(L140+L146+L154+L165) -> 0
D139: ='BNB-System'!C124 -> technische Ausführung
B140: ='BNB-System'!B125 -> BN_2011 | C140: ='BNB-System'!C125 -> 4.1.1 | D140: ='BNB-System'!D125 -> Schallschutz | E140: ='BNB-System'!E125 -> 100 | H140: =IF(AND(ISNUMBER($H141),$H141>=0),H141,IF(SUM(H142:H145)>100,100,SUM(H142:H145))) -> 0 | K140: ='BNB-System'!G125 -> 0.05625 | L140: =IF(ISNUMBER(H140*'BNB-System'!G125/100),H140*'BNB-System'!G125/100,0) -> 0
D141: pauschale Bewertung des Kriteriums:
D142: ='BNB-System'!D126 -> Luftschallschutz gegen Außenlärm | E142: ='BNB-System'!E126 -> 20
D143: ='BNB-System'!D127 -> Luftschallschutz gegenüber fremden Arbeitsräumen und eigenen Arbeitsbereichen | E143: ='BNB-System'!E127 -> 30
D144: ='BNB-System'!D128 -> Trittschallschutz gegenüber fremden Arbeitsräumen und eigenen Arbeitsbereichen | E144: ='BNB-System'!E128 -> 30
D145: ='BNB-System'!D129 -> Schallschutz gegenüber haustechnischen Anlagen | E145: ='BNB-System'!E129 -> 20
B146: ='BNB-System'!B130 -> BK | C146: ='BNB-System'!C130 -> 4.1.2 | D146: ='BNB-System'!D130 -> Wärme- und Tauwasserschutz | E146: ='BNB-System'!E130 -> 100 | H146: =IF(AND(ISNUMBER($H147),$H147>=0),H147,IF(SUM(H148:H153)>100,100,SUM(H148:H153))) -> 0 | K146: ='BNB-System'!G130 -> 0.05625 | L146: =IF(ISNUMBER(H146*'BNB-System'!G130/100),H146*'BNB-System'!G130/100,0) -> 0
D147: pauschale Bewertung des Kriteriums:
D148: ='BNB-System'!D131 -> Mittlere Wärmeduchgangskoeffizienten | E148: ='BNB-System'!E131 -> 30
D149: ='BNB-System'!D132 -> Wärmebrückenzuschlag | E149: ='BNB-System'!E132 -> 15
D150: ='BNB-System'!D133 -> Klassen der Luftdurchlässigkeit (Fugendurchlässigkeit) | E150: ='BNB-System'!E133 -> 15
D151: ='BNB-System'!D134 -> Tauwasserbildung | E151: ='BNB-System'!E134 -> 10
D152: ='BNB-System'!D135 -> Luftwechsel | E152: ='BNB-System'!E135 -> 15
D153: ='BNB-System'!D136 -> Sonneneintragswert | E153: ='BNB-System'!E136 -> 15
B154: ='BNB-System'!B137 -> BN_2011 | C154: ='BNB-System'!C137 -> 4.1.3 | D154: ='BNB-System'!D137 -> Reinigung und Instandhaltung | E154: ='BNB-System'!E137 -> 100 | H154: =IF(AND(ISNUMBER($H155),$H155>=0),H155,IF(SUM(H156:H164)>100,100,SUM(H156:H164))) -> 0 | K154: ='BNB-System'!G137 -> 0.05625 | L154: =IF(ISNUMBER(H154*'BNB-System'!G137/100),H154*'BNB-System'!G137/100,0) -> 0
D155: pauschale Bewertung des Kriteriums:
D156: ='BNB-System'!D138 -> Tragkonstruktion | E156: ='BNB-System'!E138 -> 15
D157: ='BNB-System'!D139 -> Zugänglichkeit der Außenglasflächen | E157: ='BNB-System'!E139 -> 15
D158: ='BNB-System'!D140 -> Außenbauteile | E158: ='BNB-System'!E140 -> 9
D159: ='BNB-System'!D141 -> Bodenbelag | E159: ='BNB-System'!E141 -> 9
D160: ='BNB-System'!D142 -> Schmutzfangzone | E160: ='BNB-System'!E142 -> 9
D161: ='BNB-System'!D143 -> Fußbodenleisten | E161: ='BNB-System'!E143 -> 9
D162: ='BNB-System'!D144 -> Hindernisfreie Grundrissgestaltung | E162: ='BNB-System'!E144 -> 9
D163: ='BNB-System'!D145 -> Einbauten | E163: ='BNB-System'!E145 -> 10
D164: ='BNB-System'!D146 -> Zugänglichkeit der Innenglasflächen | E164: ='BNB-System'!E146 -> 15
B165: ='BNB-System'!B147 -> BN_2011 | C165: ='BNB-System'!C147 -> 4.1.4 | D165: ='BNB-System'!D147 -> Rückbau, Trennung und Verwertung | E165: ='BNB-System'!E147 -> 100 | K165: ='BNB-System'!G147 -> 0.05625 | L165: =IF(ISNUMBER(H165*'BNB-System'!G147/100),H165*'BNB-System'!G147/100,0) -> 0
C167: ='BNB-System'!B149 -> Prozessqualität | K167: =K170+K175+K182+K198+K199+K205+K216+K223+K229+K233 -> 0.1 | L167: =(L170+L175+L182+L198+L199+L205+L216+L223+L229+L233) -> 0
D169: ='BNB-System'!C151 -> Planung
B170: ='BNB-System'!B152 -> BN_2011 | C170: ='BNB-System'!C152 -> 5.1.1 | D170: ='BNB-System'!D152 -> Projektvorbereitung | E170: ='BNB-System'!E152 -> 100 | H170: =IF(AND(ISNUMBER($H171),$H171>=0),H171,IF(SUM(H172:H174)>100,100,SUM(H172:H174))) -> 0 | K170: ='BNB-System'!G152 -> 0.012 | L170: =IF(ISNUMBER(H170*'BNB-System'!G152/100),H170*'BNB-System'!G152/100,0) -> 0
D171: pauschale Bewertung des Kriteriums:
D172: ='BNB-System'!D153 -> Bedarfsplanung oder vergleichbare Planung | E172: ='BNB-System'!E153 -> 35
D173: ='BNB-System'!D154 -> Zielvereinbarung | E173: ='BNB-System'!E154 -> 35
D174: ='BNB-System'!D155 -> Architektenwettbewerb | E174: ='BNB-System'!E155 -> 30
B175: ='BNB-System'!B156 -> BN_2011 | C175: ='BNB-System'!C156 -> 5.1.2 | D175: ='BNB-System'!D156 -> Integrale Planung | E175: ='BNB-System'!E156 -> 100 | H175: =IF(AND(ISNUMBER($H176),$H176>=0),H176,IF(SUM(H177:H181)>100,100,SUM(H177:H181))) -> 0 | K175: ='BNB-System'!G156 -> 0.012 | L175: =IF(ISNUMBER(H175*'BNB-System'!G156/100),H175*'BNB-System'!G156/100,0) -> 0
D176: pauschale Bewertung des Kriteriums:
D177: ='BNB-System'!D157 -> Integrales Planungsteam | E177: ='BNB-System'!E157 -> 30
D178: ='BNB-System'!D158 -> Qualifikation des Planungsteams | E178: ='BNB-System'!E158 -> 20
D179: ='BNB-System'!D159 -> Integraler Planungsprozess | E179: ='BNB-System'!E159 -> 20
D180: ='BNB-System'!D160 -> Nutzerbeteiligung | E180: ='BNB-System'!E160 -> 20
D181: ='BNB-System'!D161 -> Öffentlichkeitsbeteiligung | E181: ='BNB-System'!E161 -> 10
B182: ='BNB-System'!B162 -> BK | C182: ='BNB-System'!C162 -> 5.1.3 | D182: ='BNB-System'!D162 -> Komplexität und Optimierung der Planung | E182: ='BNB-System'!E162 -> 100 | H182: =IF(AND(ISNUMBER($H183),$H183>=0),H183,IF(SUM(H184:H197)>100,100,SUM(H184:H197))) -> 0 | K182: ='BNB-System'!G162 -> 0.012 | L182: =IF(ISNUMBER(H182*'BNB-System'!G162/100),H182*'BNB-System'!G162/100,0) -> 0
D183: pauschale Bewertung des Kriteriums:
D184: ='BNB-System'!D163 -> SiGe-Plan | E184: ='BNB-System'!E163 -> 10
D185: ='BNB-System'!D164 -> Energiekonzept | E185: ='BNB-System'!E164 -> 10
D186: ='BNB-System'!D165 -> Messkonzept | E186: ='BNB-System'!E165 -> 10
D187: ='BNB-System'!D166 -> Wasserkonzept | E187: ='BNB-System'!E166 -> 10
D188: ='BNB-System'!D167 -> Ver- und Entsiegelungskonzept | E188: ='BNB-System'!E167 -> 10
D189: ='BNB-System'!D168 -> Abfallkonzept | E189: ='BNB-System'!E168 -> 5
D190: ='BNB-System'!D169 -> Konzept zur Vermeidung von Umwelt- und Gesundheitsrisiken aus Bauprodukten | E190: ='BNB-System'!E169 -> 10
D191: ='BNB-System'!D170 -> Lüftungskonzept | E191: ='BNB-System'!E170 -> 10
D192: ='BNB-System'!D171 -> Tages- / Kunstlichtoptimierung | E192: ='BNB-System'!E171 -> 10
D193: ='BNB-System'!D172 -> Konzept zur Sicherung der Reinigungs- und Instandhaltungsfreundlichkeit | E193: ='BNB-System'!E172 -> 10
D194: ='BNB-System'!D173 -> Konzept zur Unterstützung der Umbaubarkeit, Rückbaubarkeit und Recyclingfreundlichkeit | E194: ='BNB-System'!E173 -> 10
D195: ='BNB-System'!D174 -> Sonstige Konzepte zum Nachhaltigen Bauen | E195: ='BNB-System'!E174 -> 20
D196: ='BNB-System'!D175 -> Prüfung der Planungsunterlagen durch unabhängige Dritte | E196: ='BNB-System'!E175 -> 5
D197: ='BNB-System'!D176 -> Durchführung von Variantenvergleichen | E197: ='BNB-System'!E176 -> 10
B198: ='BNB-System'!B177 -> BN_2011 | C198: ='BNB-System'!C177 -> 5.1.4 | D198: ='BNB-System'!D177 -> Ausschreibung und Vergabe | E198: ='BNB-System'!E177 -> 100 | K198: ='BNB-System'!G177 -> 0.008 | L198: =IF(ISNUMBER(H198*'BNB-System'!G177/100),H198*'BNB-System'!G177/100,0) -> 0
B199: ='BNB-System'!B178 -> BN_2011 | C199: ='BNB-System'!C178 -> 5.1.5 | D199: ='BNB-System'!D178 -> Vorraussetzungen für eine optimale Bewirtschaftung | E199: ='BNB-System'!E178 -> 100 | H199: =IF(AND(ISNUMBER($H200),$H200>=0),H200,IF(SUM(H201:H204)>100,100,SUM(H201:H204))) -> 0 | K199: ='BNB-System'!G178 -> 0.008 | L199: =IF(ISNUMBER(H199*'BNB-System'!G178/100),H199*'BNB-System'!G178/100,0) -> 0
D200: pauschale Bewertung des Kriteriums:
D201: ='BNB-System'!D179 -> Erstellung einer Objektdokumentation / Gebäudepass | E201: ='BNB-System'!E179 -> 25
D202: ='BNB-System'!D180 -> Erstellung von Wartungs-, Inspektions-, Betriebs-, und Pflegeanleitungen | E202: ='BNB-System'!E180 -> 25
D203: ='BNB-System'!D181 -> Anpassung der Pläne und Berechnungen an das realisierte Gebäude | E203: ='BNB-System'!E181 -> 25
D204: ='BNB-System'!D182 -> Erstellung eines Nutzerhandbuches | E204: ='BNB-System'!E182 -> 25
B205: ='BNB-System'!B183 -> BK | C205: ='BNB-System'!C183 -> 5.1.6 | D205: ='BNB-System'!D183 -> Bestandsanalyse | E205: ='BNB-System'!E183 -> 100 | H205: =IF(AND(ISNUMBER($H206),$H206>=0),H206,IF(SUM(H207:H215)>100,100,SUM(H207:H215))) -> 0 | K205: ='BNB-System'!G183 -> 0.012 | L205: =IF(ISNUMBER(H205*'BNB-System'!G183/100),H205*'BNB-System'!G183/100,0) -> 0
D206: pauschale Bewertung des Kriteriums:
D207: ='BNB-System'!D184 -> Bestandsaufnahme Geometrie | E207: ='BNB-System'!E184 -> 10
D208: ='BNB-System'!D185 -> Bestandsaufnahme Baukonstruktion und Baustoffe | E208: ='BNB-System'!E185 -> 20
D209: ='BNB-System'!D186 -> Bestandsaufnahme Haustechnik | E209: ='BNB-System'!E186 -> 10
D210: ='BNB-System'!D187 -> Bestandsaufnahme Bau- und Nutzungsgeschichte | E210: ='BNB-System'!E187 -> 5
... 31 more rows

Sheet BNB-System
B2: Bewertungssystem Nachhaltiges Bauen (BNB) - Systemvariante Büro- und Verwaltungsgebäude
B3: BNB-Modul Komplettmodernisierung (BNB_BK) - Version 2013_3 - Gewichtung und Bedeutungsfaktoren
B5: BNB-Modul Komplettmodernisierung
B6: Nachhaltigkeitskriterien | E6: Zielwert | F6: Bedeutungsfaktor | G6: Gewichtung Einzelkriterien Gesamtbewertung | H6: Gewichtung Hauptkriteriengruppen Gesamtbewertung
E7: Punktzahl
E8: Maximum
B10: Ökologische Qualität | H10: =SUM(H13:H28) -> 2000 | I10: 0.225
C12: Wirkungen auf die globale und lokale Umwelt
B13: BK | C13: 1.1.1 | D13: Treibhauspotenzial (GWP) | E13: 100 | F13: 3 | G13: =H13/$H10*I10 -> 0.03375 | H13: =E13*F13 -> 300
B14: BK | C14: 1.1.2 | D14: Ozonschichtabbaupotenzial (ODP) | E14: 100 | F14: 1 | G14: =H14/H10*I10 -> 0.01125 | H14: 100
B15: BK | C15: 1.1.3 | D15: Ozonbildungspotenzial (POCP) | E15: 100 | F15: 1 | G15: =H15/H10*I10 -> 0.01125 | H15: 100
B16: BK | C16: 1.1.4 | D16: Versauerungspotenzial (AP) | E16: 100 | F16: 1 | G16: =H16/H10*I10 -> 0.01125 | H16: 100
B17: BK | C17: 1.1.5 | D17: Überdüngungspotenzial (EP) | E17: 100 | F17: 1 | G17: =H17/H10*I10 -> 0.01125 | H17: 100
B18: BK | C18: 1.1.6 | D18: Risiken für die lokale Umwelt | E18: =IF(SUM(E19:E20)>100,100,SUM(E19:E20)) -> 100 | F18: 3 | G18: =H18/H10*I10 -> 0.03375 | H18: 300
D19: Risiken aus der Neusubstanz | E19: 50
D20: Risiken aus der Altsubstanz | E20: 50
B21: BK | C21: 1.1.7 | D21: Nachhaltige Materialgewinnung / Holz | E21: 100 | F21: 1 | G21: =H21/H10*I10 -> 0.01125 | H21: 100
C22: Ressourceninanspruchnahme
B23: BK | C23: 1.2.1 | D23: Primärenergiebedarf nicht erneuerbar (PEne) | E23: 100 | F23: 3 | G23: =H23/$H10*I10 -> 0.03375 | H23: =E23*F23 -> 300
B24: BK | C24: 1.2.2 | D24: Gesamtprimärenergiebedarf (PEges) u. Anteil erneuerbare Primärenergie (PEe) | E24: =IF(SUM(E25:E26)>100,100,SUM(E25:E26)) -> 100 | F24: 2 | G24: =H24/$H$10*$I$10 -> 0.0225 | H24: =E24*F24 -> 200
D25: Gesamtenergiebedarf | E25: 100
D26: Anteil erneuerbarer Primärenergie | E26: 50
B27: BN_2011 | C27: 1.2.3 | D27: Trinkwasserbedarf und Abwasseraufkommen | E27: 100 | F27: 2 | G27: =H27/H10*I10 -> 0.0225 | H27: =E27*F27 -> 200
B28: BK | C28: 1.2.4 | D28: Flächeninanspruchnahme | E28: =IF(SUM(E29:E30)>100,100,SUM(E29:E30)) -> 100 | F28: 2 | G28: =H28/$H$10*$I$10 -> 0.0225 | H28: =E28*F28 -> 200
D29: Veränderung der Flächeninanspruchnahme | E29: 100
D30: Ausgleichsmaßnahmen und Flächenrecycling | E30: 40
B32: Ökonomische Qualität | H32: =SUM(H35:H37) -> 500 | I32: 0.225
C34: Lebenszykluskosten
B35: BK | C35: 2.1.1 | D35: Gebäudebezogene Kosten im Lebenszyklus | E35: 100 | F35: 3 | G35: =H35/$H32*I32 -> 0.135 | H35: =E35*F35 -> 300
C36: Wertentwicklung
B37: BN_2011 | C37: 2.2.1 | D37: Drittverwendungsfähigkeit | E37: 100 | F37: 2 | G37: =H37/$H$32*$I$32 -> 0.09 | H37: =E37*F37 -> 200
B39: Soziokulturelle und funktionale Qualität | H39: =SUM(H42:H120) -> 2800 | I39: 0.225
C41: Gesundheit, Behaglichkeit und Nutzerzufriedenheit
B42: BN_2011 | C42: 3.1.1 | D42: Thermischer Komfort im Winter | E42: =IF(SUM(E43:E46)>100,100,SUM(E43:E46)) -> 100 | F42: 2 | G42: =H42/$H$39*$I$39 -> 0.01607142857 | H42: =E42*F42 -> 200
D43: Operative Temperatur | E43: 70
D44: Zugluft | E44: 10
D45: Stahlungstemperaturasymmetrie und Fußbodentemperatur | E45: 10
D46: Relative Luftfeuchte | E46: 10
B47: BN_2011 | C47: 3.1.2 | D47: Thermischer Komfort im Sommer | E47: =IF(SUM(E48:E51)>100,100,SUM(E48:E51)) -> 100 | F47: 3 | G47: =H47/$H$39*$I$39 -> 0.02410714286 | H47: =E47*F47 -> 300
D48: Operative Temperatur | E48: 70
D49: Zugluft | E49: 10
D50: Stahlungstemperaturasymmetrie und Fußbodentemperatur | E50: 10
D51: Relative Luftfeuchte | E51: 10
B52: BN_2011 | C52: 3.1.3 | D52: Innenraumhygiene | E52: =IF(SUM(E53:E54)>100,100,SUM(E53:E54)) -> 100 | F52: 3 | G52: =H52/$H$39*$I$39 -> 0.02410714286 | H52: =E52*F52 -> 300
D53: Flüchtige organische Stoffe (VOC) und Formaldehyd | E53: 50
D54: Personenbezogene Lüftungsrate | E54: 50
B55: BN_2011 | C55: 3.1.4 | D55: Akustischer Komfort | E55: =IF(SUM(E56:E63)>100,100,SUM(E56:E63)) -> 100 | F55: 1 | G55: =H55/$H$39*$I$39 -> 0.008035714286 | H55: =E55*F55 -> 100
D56: Einzel- und Mehrpersonenbüros bis 40 m² | E56: 100
D57: NF Einzel- und Mehrpersonenbüros bis 40 m²
D58: Mehrpersonenbüros | E58: 100
D59: NF Mehrpersonenbüros
D60: Besprechungsräume | E60: 100
D61: NF Besprechungsräume
D62: Kantinen über 50 m² | E62: 100
D63: NF Kantinen über 50 m²
B64: BN_2011 | C64: 3.1.5 | D64: Visueller Komfort | E64: =IF(SUM(E65:E71)>100,100,SUM(E65:E71)) -> 100 | F64: 3 | G64: =H64/$H$39*$I$39 -> 0.02410714286 | H64: =E64*F64 -> 300
D65: Tageslichtverfügbarkeit Gesamtgebäude | E65: 15
D66: Tageslichtverfügbarkeit ständige Arbeitsplätze | E66: 15
D67: Nachweis de Sichtverbindung außen | E67: 15
D68: Blendfreiheit Tageslicht | E68: 15
D69: Blendfreiheit Kunstlicht | E69: 10
D70: Lichtverteilung | E70: 15
D71: Farbwiedergabe | E71: 15
B72: BN_2011 | C72: 3.1.6 | D72: Einflussnahme des Nutzers | E72: =IF(SUM(E73:E80)>100,100,SUM(E73:E80)) -> 100 | F72: 2 | G72: =H72/$H$39*$I$39 -> 0.01607142857 | H72: =E72*F72 -> 200
D73: Lüftung | E73: 10
D74: Sonnenschutz | E74: 10
D75: Blendschutz | E75: 10
D76: Temperaturen während der Heizperiode | E76: 10
D77: Temperaturen außerhalb der Heizperiode | E77: 15
D78: Steuerung von Tageslicht | E78: 15
D79: Steuerung von Kunstlicht | E79: 15
D80: Bedienfreundlichkeit | E80: 15
B81: BN_2011 | C81: 3.1.7 | D81: Aufenthaltsmerkmale im Außenraum | E81: =IF(SUM(E82:E83)>100,100,SUM(E82:E83)) -> 100 | F81: 1 | G81: =H81/$H$39*$I$39 -> 0.008035714286 | H81: =E81*F81 -> 100
D82: Anzahl der Sitzmöglichkeiten im Außenbereich | E82: 40
D83: Ausstattungsmerkmale | E83: 100
B84: BN_2011 | C84: 3.1.8 | D84: Sicherheit und Störfallrisiken | E84: =IF(SUM(E85:E86)>100,100,SUM(E85:E86)) -> 100 | F84: 1 | G84: =H84/$H$39*$I$39 -> 0.008035714286 | H84: =E84*F84 -> 100
D85: Subjektives Sicherheitsempfinden und Schutz vor Übergriffen | E85: 50
D86: Reduktion des Schadensausmaßes im Fall von Schadensereignissen | E86: 50
C87: Funktionalität
B88: BN_2011 | C88: 3.2.1 | D88: Barrierefreiheit | E88: 100 | F88: 2 | G88: =H88/$H$39*$I$39 -> 0.01607142857 | H88: =E88*F88 -> 200
B89: BN_2011 | C89: 3.2.2 | D89: Flächeneffizienz | E89: 100 | F89: 1 | G89: =H89/$H$39*$I$39 -> 0.008035714286 | H89: =E89*F89 -> 100
B90: BK | C90: 3.2.3 | D90: Umnutzungsfähigkeit | E90: =IF(SUM(E91:E96)>100,100,SUM(E91:E96)) -> 100 | F90: 2 | G90: =H90/$H$39*$I$39 -> 0.01607142857 | H90: =E90*F90 -> 200
D91: Lichte Raumhöhe | E91: 15
D92: Gebäudetiefe | E92: 15
D93: Vertikale Erschließung | E93: 15
D94: Grundrisse | E94: 25
D95: Konstruktion | E95: 20
D96: Technische Ausstattung | E96: 10
B97: BN_2011 | C97: 3.2.4 | D97: Zugänglichkeit | E97: =IF(SUM(E98:E102)>100,100,SUM(E98:E102)) -> 100 | F97: 2 | G97: =H97/$H$39*$I$39 -> 0.01607142857 | H97: =E97*F97 -> 200
D98: Grundsätzliche Zugänglichkeit des Gebäudes | E98: 25
D99: Öffnung der Außenanlagen für die Öffentlichkeit | E99: 25
D100: Öffnung gebäudeinterner Einrichtungen für die Öffentlichkeit | E100: 25
D101: Möglichkeit der Anmietung von Räumlichkeiten | E101: 15
D102: Nutzungsvielfalt der öffentlich zugänglichen Bereiche | E102: 10
B103: BN_2011 | C103: 3.2.5 | D103: Fahrradkomfort | E103: =IF(SUM(E104:E105)>100,100,SUM(E104:E105)) -> 100 | F103: 1 | G103: =H103/$H$39*$I$39 -> 0.008035714286 | H103: =E103*F103 -> 100
D104: Anzahl der Fahrradstellplätze | E104: 50
D105: Qualitative Anfoorderungen | E105: 50
C106: Sicherung der Gestaltungsqualität
B107: BK | C107: 3.3.1 | D107: Gestalterische und städtebauliche Qualität | E107: =IF(SUM(E108:E115)>100,100,SUM(E108:E115)) -> 100 | F107: 3 | G107: =H107/$H$39*$I$39 -> 0.02410714286 | H107: =E107*F107 -> 300
D108: Fortentwicklung der gestalterischen und städtebaulichen Qualität des Bestandsgebäudes | E108: 40
D109: Wettbewerbsverfahren | E109: 35
D110: Ausführung des Entwurfs eines der Preisträger | E110: 20
D111: Beauftragung des Planungsteams | E111: 5
D112: Auszeichnung mit einem Architekturpreis | E112: 60
D113: Unabhängiges Expertengremium | E113: 40
D114: Sonderfall Mindestanforderung | E114: 5
D115: Denkmalpflege und Denkmalschutz | E115: 100
B116: BK | C116: 3.3.2 | D116: Kunst am Bau | E116: =IF(SUM(E117:E120)>100,100,SUM(E117:E120)) -> 100 | F116: 1 | G116: =H116/$H$39*$I$39 -> 0.008035714286 | H116: =E116*F116 -> 100
D117: Mindestanforderung | E117: 10
D118: Bereitstellung von Mitteln im Rahmen der Bauaufgabe | E118: 30
D119: Umsetzung des BMVBS-Leitfadens Kunst am Bau | E119: 40
D120: Öffentlichkeitsarbeit, Rezeption der Kunst am Bau | E120: 20
B122: Technische Qualität | H122: =SUM(H125:H147) -> 800 | I122: 0.225
C124: technische Ausführung
B125: BN_2011 | C125: 4.1.1 | D125: Schallschutz | E125: =IF(SUM(E126:E129)>100,100,SUM(E126:E129)) -> 100 | F125: 2 | G125: =H125/$H$122*$I$122 -> 0.05625 | H125: =E125*F125 -> 200
D126: Luftschallschutz gegen Außenlärm | E126: 20
D127: Luftschallschutz gegenüber fremden Arbeitsräumen und eigenen Arbeitsbereichen | E127: 30
D128: Trittschallschutz gegenüber fremden Arbeitsräumen und eigenen Arbeitsbereichen | E128: 30
D129: Schallschutz gegenüber haustechnischen Anlagen | E129: 20
B130: BK | C130: 4.1.2 | D130: Wärme- und Tauwasserschutz | E130: =IF(SUM(E131:E136)>100,100,SUM(E131:E136)) -> 100 | F130: 2 | G130: =H130/$H$122*$I$122 -> 0.05625 | H130: =E130*F130 -> 200
D131: Mittlere Wärmeduchgangskoeffizienten | E131: 30
D132: Wärmebrückenzuschlag | E132: 15
D133: Klassen der Luftdurchlässigkeit (Fugendurchlässigkeit) | E133: 15
D134: Tauwasserbildung | E134: 10
D135: Luftwechsel | E135: 15
D136: Sonneneintragswert | E136: 15
B137: BN_2011 | C137: 4.1.3 | D137: Reinigung und Instandhaltung | E137: =IF(SUM(E138:E146)>100,100,SUM(E138:E146)) -> 100 | F137: 2 | G137: =H137/$H$122*$I$122 -> 0.05625 | H137: =E137*F137 -> 200
D138: Tragkonstruktion | E138: 15
D139: Zugänglichkeit der Außenglasflächen | E139: 15
D140: Außenbauteile | E140: 9
D141: Bodenbelag | E141: 9
D142: Schmutzfangzone | E142: 9
D143: Fußbodenleisten | E143: 9
D144: Hindernisfreie Grundrissgestaltung | E144: 9
D145: Einbauten | E145: 10
D146: Zugänglichkeit der Innenglasflächen | E146: 15
B147: BN_2011 | C147: 4.1.4 | D147: Rückbau, Trennung und Verwertung | E147: 100 | F147: 2 | G147: =H147/$H$122*$I$122 -> 0.05625 | H147: =E147*F147 -> 200
B149: Prozessqualität | H149: =SUM(H152:H207) -> 2500 | I149: 0.1
C151: Planung
B152: BN_2011 | C152: 5.1.1 | D152: Projektvorbereitung | E152: =IF(SUM(E153:E155)>100,100,SUM(E153:E155)) -> 100 | F152: 3 | G152: =H152/$H$149*$I$149 -> 0.012 | H152: =E152*F152 -> 300
D153: Bedarfsplanung oder vergleichbare Planung | E153: 35
D154: Zielvereinbarung | E154: 35
D155: Architektenwettbewerb | E155: 30
B156: BN_2011 | C156: 5.1.2 | D156: Integrale Planung | E156: =IF(SUM(E157:E161)>100,100,SUM(E157:E161)) -> 100 | F156: 3 | G156: =H156/$H$149*$I$149 -> 0.012 | H156: =E156*F156 -> 300
D157: Integrales Planungsteam | E157: 30
D158: Qualifikation des Planungsteams | E158: 20
D159: Integraler Planungsprozess | E159: 20
D160: Nutzerbeteiligung | E160: 20
D161: Öffentlichkeitsbeteiligung | E161: 10
B162: BK | C162: 5.1.3 | D162: Komplexität und Optimierung der Planung | E162: =IF(SUM(E163:E176)>100,100,SUM(E163:E176)) -> 100 | F162: 3 | G162: =H162/$H$149*$I$149 -> 0.012 | H162: =E162*F162 -> 300
D163: SiGe-Plan | E163: 10
D164: Energiekonzept | E164: 10
D165: Messkonzept | E165: 10
D166: Wasserkonzept | E166: 10
D167: Ver- und Entsiegelungskonzept | E167: 10
D168: Abfallkonzept | E168: 5
D169: Konzept zur Vermeidung von Umwelt- und Gesundheitsrisiken aus Bauprodukten | E169: 10
D170: Lüftungskonzept | E170: 10
D171: Tages- / Kunstlichtoptimierung | E171: 10
D172: Konzept zur Sicherung der Reinigungs- und Instandhaltungsfreundlichkeit | E172: 10
D173: Konzept zur Unterstützung der Umbaubarkeit, Rückbaubarkeit und Recyclingfreundlichkeit | E173: 10
D174: Sonstige Konzepte zum Nachhaltigen Bauen | E174: 20
D175: Prüfung der Planungsunterlagen durch unabhängige Dritte | E175: 5
D176: Durchführung von Variantenvergleichen | E176: 10
B177: BN_2011 | C177: 5.1.4 | D177: Ausschreibung und Vergabe | E177: 100 | F177: 2 | G177: =H177/$H$149*$I$149 -> 0.008 | H177: =E177*F177 -> 200
B178: BN_2011 | C178: 5.1.5 | D178: Vorraussetzungen für eine optimale Bewirtschaftung | E178: =IF(SUM(E179:E182)>100,100,SUM(E179:E182)) -> 100 | F178: 2 | G178: =H178/$H$149*$I$149 -> 0.008 | H178: =E178*F178 -> 200
D179: Erstellung einer Objektdokumentation / Gebäudepass | E179: 25
D180: Erstellung von Wartungs-, Inspektions-, Betriebs-, und Pflegeanleitungen | E180: 25
D181: Anpassung der Pläne und Berechnungen an das realisierte Gebäude | E181: 25
D182: Erstellung eines Nutzerhandbuches | E182: 25
B183: BK | C183: 5.1.6 | D183: Bestandsanalyse | E183: =IF(SUM(E184:E192)>100,100,SUM(E184:E192)) -> 100 | F183: 3 | G183: =H183/$H$149*$I$149 -> 0.012 | H183: =E183*F183 -> 300
D184: Bestandsaufnahme Geometrie | E184: 10
D185: Bestandsaufnahme Baukonstruktion und Baustoffe | E185: 20
D186: Bestandsaufnahme Haustechnik | E186: 10
D187: Bestandsaufnahme Bau- und Nutzungsgeschichte | E187: 5
D188: Bestandsaufnahme Exposition | E188: 5
D189: Baudiagnose Tragwerk | E189: 15
D190: Baudiagnose Energetische Qualität | E190: 15
D191: Baudiagnose Schadstoffe | E191: 10
D192: Baudiagnose Feuchte- und Salzbelastungen | E192: 10
B193: BK | C193: 5.1.7 | D193: Rückbaumaßnahmen | E193: =IF(SUM(E194:E197)>100,100,SUM(E194:E197)) -> 100 | F193: 1 | G193: =H193/$H$149*$I$149 -> 0.004 | H193: =E193*F193 -> 100
D194: Technische Arbeitsschutzbedingungen | E194: 25
D195: Planung des Rückbaus | E195: 25
D196: Selektiver Rückbau | E196: 25
D197: Prüfen auf Abfalltrennung und Entsorgung | E197: 25
C198: Bauausführung
B199: BN_2011 | C199: 5.2.1 | D199: Baustelle / Bauprozess | E199: =IF(SUM(E200:E203)>100,100,SUM(E200:E203)) -> 100 | F199: 2 | G199: =H199/$H$149*$I$149 -> 0.008 | H199: =E199*F199 -> 200
D200: Abfallarme Baustelle | E200: 25
D201: Lärmarme Baustelle | E201: 25
D202: Staubarme Baustelle | E202: 25
D203: Bodenschutz auf der Baustelle | E203: 25
B204: BN_2011 | C204: 5.2.2 | D204: Qualitätssicherung der Bauausführung | E204: =IF(SUM(E205:E207)>100,100,SUM(E205:E207)) -> 100 | F204: 3 | G204: =H204/$H$149*$I$149 -> 0.012 | H204: =E204*F204 -> 300
D205: Dokumentation der verwendeten Materialien, Hilfsstoffe und Sicherheitsdatenblätter | E205: 50
D206: Messungen zur Qualitätskontrolle | E206: 50
B207: BN_2011 | C207: 5.2.3 | D207: Systematische Inbetriebnahme | E207: 100 | F207: 3 | G207: =H207/$H$149*$I$149 -> 0.012 | H207: =E207*F207 -> 300
B210: Standortmerkmale | H210: =SUM(H213:H218) -> 1300
C212: Standortmerkmale
B213: BN_2011 | C213: 6.1.1 | D213: Risiken am Mikrostandort | E213: 100 | F213: 2 | G213: -- | H213: =E213*F213 -> 200
B214: BN_2011 | C214: 6.1.2 | D214: Verhältnisse am Mikrostandort | E214: 100 | F214: 2 | G214: -- | H214: 200
B215: BN_2011 | C215: 6.1.3 | D215: Quartiersmerkmale | E215: 100 | F215: 2 | G215: -- | H215: 200
... 3 more rows

Sheet Gültigkeitslisten (hidden)
B1: Erfüllt / nicht erfüllt
B2: o
B3: x
